fUSD/lending_fUSD_20251122
["ID","MTS","AMOUNT","RATE_DAILY","PERIOD"]
[394658855,1763831431792,-501.64742584,0.00015873,2]
[394658856,1763831431801,-500.0,0.00015873,2]
[394658857,1763831431810,-500.0,0.00015873,2]
[394658858,1763831431819,-500.0,0.00015873,2]
[394658859,1763831431828,-3035.35579084,0.00015873,2]
[394658860,1763831431838,-433.55985349,0.00015873,2]
[394658861,1763831431847,-151.0,0.00015878,2]
[394658862,1763831431856,-300.0,0.00015879,2]
[394658863,1763831431865,-500.0,0.0001588,2]
[394658864,1763831431874,-213.73466217,0.0001588,2]
[394658865,1763831431883,-429.121478,0.0001588,2]
[394658866,1763831431894,-197.81476086,0.0001588,2]
[394658867,1763831431903,-500.0,0.0001588,2]
[394658868,1763831431912,-500.0,0.0001588,2]
[394658869,1763831431921,-500.0,0.0001588,2]
[394658870,1763831431931,-500.0,0.0001588,2]
[394658871,1763831431941,-474.00477995,0.0001588,2]
[394658872,1763831431950,-500.0,0.0001588,2]
[394658874,1763831431960,-500.0,0.0001588,2]
[394658875,1763831431969,-500.0,0.0001588,2]
[394658876,1763831431979,-500.0,0.0001588,2]
[394658877,1763831431991,-500.0,0.0001588,2]
[394658878,1763831432000,-500.0,0.0001588,2]
[394658879,1763831432010,-500.0,0.0001588,2]
[394658880,1763831432021,-500.0,0.0001588,2]
[394658881,1763831432031,-500.0,0.0001588,2]
[394658882,1763831432040,-500.0,0.0001588,2]
[394658883,1763831432050,-500.0,0.0001588,2]
[394658884,1763831432060,-500.0,0.0001588,2]
[394658885,1763831432070,-500.0,0.0001588,2]
[394658886,1763831432079,-1000.0,0.00015881,2]
[394658887,1763831432089,-280.5422,0.00015881,2]
[394658888,1763831432098,-1000.0,0.00015881,2]
[394658889,1763831432107,-369309.15526268,0.00015881,2]
[394658890,1763831432119,-75355.36627874,0.00015881,2]
[394658891,1763831432130,-91306.06684188,0.00015881,2]
[394658892,1763831432141,-71399.51048519,0.00015881,2]
[394658893,1763831432153,-2850.15,0.00015881,2]
[394658894,1763831432164,-380.79749567,0.00015881,2]
[394658895,1763831432175,-295.0,0.00015881,2]
[394658896,1763831432186,-21770.68783283,0.00015881,2]
[394658897,1763831432197,-14251.8,0.00015881,2]
[394658898,1763831432208,-4308.48920621,0.00015881,2]
[394658899,1763831432219,-1302.0,0.00015881,2]
[394658902,1763831437735,-5943.95627238,0.00015881,2]
[394658903,1763831437748,-442.2120634,0.00015881,2]
[394658904,1763831437786,-1439.312,0.00015881,2]
[394658905,1763831437799,-4422.5248374,0.00015881,2]
[394658906,1763831437812,-29493.14385949,0.00015881,2]
[394658971,1763831439630,-8856.3,0.00015881,2]
[394658973,1763831439642,-1321.3199994,0.00015881,2]
[394658976,1763831439653,-1678.4,0.00015881,2]
[394658980,1763831439685,-1564.01642771,0.00015881,2]
[394658982,1763831439696,-1590.08808336,0.00015881,2]
[394658984,1763831439706,-393.75864082,0.00015881,2]
[394658987,1763831439718,-50325.94441284,0.00015881,2]
[394658989,1763831439727,-235.0127,0.00015881,2]
[394658991,1763831439736,-500.0,0.00015973,2]
[394658993,1763831439746,-500.0,0.00015979,2]
[394658995,1763831439755,-500.0,0.0001598,2]
[394658996,1763831439764,-500.0,0.0001598,2]
[394658997,1763831439773,-500.0,0.0001598,2]
[394658998,1763831439782,-500.0,0.0001598,2]
[394659000,1763831439791,-500.0,0.0001598,2]
[394659002,1763831439800,-500.0,0.0001598,2]
[394659004,1763831439809,-500.0,0.0001598,2]
[394659006,1763831439819,-3633.93333756,0.0001598,2]
[394659008,1763831439828,-500.0,0.0001598,2]
[394659010,1763831439837,-500.0,0.0001598,2]
[394659012,1763831439847,-500.0,0.0001598,2]
[394659014,1763831439856,-563.38598302,0.0001598,2]
[394659015,1763831439866,-3035.35579082,0.00016098,2]
[394659017,1763831439875,-166.66,0.00016149,2]
[394659019,1763831439884,-3633.93333748,0.00016193,2]
[394659020,1763831439894,-2614.99564931,0.00016323,2]
[394659023,1763831439906,-420.36014151,0.00016323,2]
[394659025,1763831439915,-150.0,0.00016356,2]
[394659027,1763831439930,-3633.93333748,0.00016407,2]
[394659029,1763831439940,-213.57817217,0.00016438,2]
[394659032,1763831439953,-264.91211026,0.00016438,2]
[394659034,1763831439966,-96.10971757,0.00016438,2]
[394659036,1763831439977,-500.0,0.00016438,2]
[394659038,1763831439989,-500.0,0.00016438,2]
[394659040,1763831440004,-336.7321224,0.00016438,2]
[394659042,1763831440013,-500.0,0.00016438,2]
[394659044,1763831440023,-500.0,0.00016438,2]
[394659046,1763831440034,-436.45601748,0.00016438,2]
[394659048,1763831440043,-500.0,0.00016438,2]
[394659050,1763831440053,-1724.01,0.00016438,2]
[394659052,1763831440064,-589.78,0.00016438,2]
[394659053,1763831440075,-500.0,0.00016438,2]
[394659054,1763831440085,-500.0,0.00016438,2]
[394659055,1763831440094,-500.0,0.00016438,2]
[394659056,1763831440105,-500.0,0.00016438,2]
[394659057,1763831440114,-500.0,0.00016438,2]
[394659058,1763831440124,-166.66,0.00016469,2]
[394659059,1763831440134,-163.32,0.00016497,2]
[394659060,1763831440144,-3035.35579082,0.00016549,2]
[394659061,1763831440153,-3633.93333748,0.0001662,2]
[394659062,1763831440163,-578.20924308,0.00016632,2]
[394659063,1763831440172,-250.0,0.00016632,2]
[394659064,1763831440182,-691.01584667,0.00016632,2]
[394659065,1763831440191,-175.0,0.0001665,2]
[394659066,1763831440201,-207.301,0.00016709,2]
[394659067,1763831440211,-250.0,0.00016709,2]
[394659068,1763831440221,-292.6068445,0.00016712,2]
[394659069,1763831440239,-281.9931555,0.00016712,2]
[394659070,1763831440249,-334.5601704,0.00016712,2]
[394659071,1763831440258,-500.0,0.00016712,2]
[394659072,1763831440268,-413.93435101,0.00016712,2]
[394659073,1763831440280,-1310.07564899,0.00016712,2]
[394659074,1763831440294,-589.78,0.00016712,2]
[394659075,1763831440304,-500.0,0.00016712,2]
[394659076,1763831440313,-500.0,0.00016712,2]
[394659077,1763831440323,-500.0,0.00016712,2]
[394659078,1763831440333,-500.0,0.00016712,2]
[394659079,1763831440342,-420.0,0.00016726,2]
[394659080,1763831440352,-971.11651564,0.00016762,2]
[394659081,1763831440364,-650.88348436,0.00016762,2]
[394659082,1763831440373,-175.0,0.00016768,2]
[394659083,1763831440383,-623.61151564,0.00016774,2]
[394659092,1763831443223,-2411.74427518,0.00016774,2]
[394659094,1763831443234,-166.66,0.00016789,2]
[394659096,1763831443245,-3633.93333748,0.00016833,2]
[394659098,1763831443258,-175.0,0.00016903,2]
[394659100,1763831443268,-175.0,0.00016938,2]
[394659102,1763831443278,-745.6289744,0.00016967,2]
[394659104,1763831443287,-12097.6850172,0.00016967,2]
[394659105,1763831443296,-420.0,0.0001697,2]
[394659106,1763831443304,-500.0,0.00016973,2]
[394659107,1763831443315,-501.20243552,0.00016973,2]
[394659108,1763831443561,-502.10718948,0.00016973,2]
[394659109,1763831443575,-310.38970396,0.00016973,2]
[394659110,1763831443585,-526.79019395,0.00016973,2]
[394659111,1763831443595,-500.0,0.00016973,2]
[394659112,1763831443604,-167.84950138,0.00016973,2]
[394659113,1763831443614,-500.0,0.00016973,2]
[394659114,1763831443624,-500.0,0.00016973,2]
[394659115,1763831443633,-500.0,0.00016973,2]
[394659116,1763831443641,-229.58849112,0.00016973,2]
[394659117,1763831443650,-500.0,0.00016973,2]
[394659118,1763831443659,-500.0,0.00016973,2]
[394659119,1763831443669,-500.0,0.00016973,2]
[394659120,1763831443678,-500.0,0.00016973,2]
[394659121,1763831443687,-500.0,0.00016973,2]
[394659122,1763831443697,-466.66660522,0.00016973,2]
[394659123,1763831443706,-151.52945777,0.00016973,2]
[394659124,1763831443716,-500.0,0.00016973,2]
[394659125,1763831443725,-167.17601955,0.00016973,2]
[394659126,1763831443734,-185.52369615,0.00016973,2]
[394659127,1763831443744,-574.6,0.00016986,2]
[394659128,1763831443754,-500.0,0.00016986,2]
[394659129,1763831443763,-1724.01,0.00016986,2]
[394659130,1763831443773,-589.78,0.00016986,2]
[394659131,1763831443782,-500.0,0.00016986,2]
[394659132,1763831443791,-441.79681599,0.00016986,2]
[394659133,1763831443800,-500.0,0.00016986,2]
[394659134,1763831443810,-500.0,0.00016986,2]
[394659135,1763831443819,-151.0,0.00016997,2]
[394659136,1763831443828,-3035.35579082,0.00016999,2]
[394659137,1763831443837,-2129.0,0.00017,2]
[394659138,1763831443846,-108517.16966205,0.00017,2]
[394659139,1763831443858,-847.67766312,0.00017,2]
[394659140,1763831443899,-8233.10714211,0.00017,2]
[394659141,1763831443910,-33030.17505056,0.00017,2]
[394659142,1763831443922,-435.98545767,0.00017,2]
[394659143,1763831443939,-14683.91707779,0.00017,2]
[394659144,1763831444038,-881.0,0.00017,2]
[394659151,1763831445725,-747.90868822,0.00017,2]
[394659152,1763831445737,-791.07285415,0.00017,2]
[394659153,1763831445747,-1124.00175,0.00017,2]
[394659154,1763831445884,-2761.17641162,0.00017,2]
[394659155,1763831445895,-2595.6784,0.00017,2]
[394659156,1763831445906,-1183.06832851,0.00017,2]
[394659167,1763831543118,346.66,0.00019178,30]
[394659168,1763831548243,400.01,0.00013699,2]
[394659182,1763831787881,150.0,0.00015964,120]
[394659183,1763832186501,-794.283,0.00015464,2]
[394659184,1763832186524,-1200.0,0.00015539,2]
[394659185,1763832186546,-1005.717,0.0001554,2]
[394659193,1763832204001,268.0,0.00022,30]
[394659194,1763832238107,190.08,7.688e-05,2]
[394659195,1763832238309,190.08,8.092e-05,2]
[394659196,1763832238534,190.08,8.497e-05,2]
[394659197,1763832238943,190.08,8.902e-05,2]
[394659198,1763832239155,190.08,9.306e-05,2]
[394659199,1763832239370,190.08,9.711e-05,2]
[394659200,1763832239569,190.08,0.00010116,2]
[394659201,1763832239778,190.08,0.0001052,2]
[394659202,1763832239990,190.08,0.00010925,2]
[394659203,1763832240203,190.08,0.00011329,2]
[394659204,1763832240405,190.08,0.00011734,2]
[394659205,1763832240656,190.08,0.00012139,2]
[394659206,1763832240884,190.08,0.00012543,2]
[394659207,1763832241099,190.08,0.00012948,2]
[394659208,1763832241310,190.08,0.00013353,2]
[394659209,1763832241517,190.08,0.00013757,2]
[394659210,1763832241937,190.08,0.00014162,2]
[394659211,1763832242162,190.08,0.00014566,2]
[394659212,1763832306657,150.0,0.00014178,2]
[394659213,1763832306725,150.0,0.00014403,2]
[394659214,1763832306794,150.0,0.00014628,2]
[394659215,1763832307400,150.0,0.00014178,2]
[394659216,1763832307464,150.0,0.00014703,2]
[394659217,1763832307602,150.0,0.00014178,2]
[394659218,1763832307678,150.0,0.00014299,2]
[394659219,1763832307740,150.0,0.0001442,2]
[394659220,1763832307791,150.0,0.00014542,2]
[394659221,1763832307904,150.0,0.00014663,2]
[394659222,1763832307956,150.0,0.00014784,2]
[394659223,1763832313393,150.0,0.00014178,2]
[394659224,1763832313514,150.0,0.00014309,2]
[394659225,1763832313836,150.0,0.00014441,2]
[394659226,1763832313874,150.0,0.00014572,2]
[394659227,1763832313944,150.0,0.00014703,2]
[394659228,1763832314260,150.0,0.00014178,2]
[394659229,1763832314315,150.0,0.00014493,2]
[394659230,1763832314396,150.0,0.00014808,2]
[394659231,1763832316231,150.0,0.00014178,2]
[394659232,1763832324080,150.00000001,0.00014178,2]
[394659233,1763832324163,150.0,0.00014178,2]
[394659234,1763832324246,150.0,0.00014441,2]
[394659235,1763832324307,150.0,0.00014703,2]
[394659236,1763832325163,150.0,0.00014178,2]
[394659237,1763832327586,150.0,0.00014178,2]
[394659239,1763832331872,150.0,0.00014178,2]
[394659240,1763832331965,150.0,0.00014178,2]
[394659527,1763832631808,-150.0,0.00014834,2]
[394659530,1763832631818,-150.0,0.00014853,2]
[394659534,1763832631828,-150.0,0.00014905,2]
[394659537,1763832631837,-50.0,0.00014966,2]
[394659540,1763832631864,-100.0,0.00014966,2]
[394659541,1763832631873,-150.0,0.00014966,2]
[394659542,1763832631882,-39.99896235,0.00014966,2]
[394659543,1763832631893,-110.00103765,0.00014966,2]
[394659544,1763832631903,-190.08,0.00014971,2]
[394659545,1763832631912,-150.0,0.00015026,2]
[394659546,1763832631921,-174.51895799,0.00015047,2]
[394659547,1763832631930,-150.0,0.00015078,2]
[394659548,1763832631939,-150.0,0.00015097,2]
[394659549,1763832631948,-150.0,0.00015123,2]
[394659550,1763832631957,-150.0,0.00015148,2]
[394659551,1763832631966,-150.0,0.00015228,2]
[394659552,1763832631975,-150.0,0.00015228,2]
[394659553,1763832631984,-150.0,0.00015228,2]
[394659554,1763832631993,-87.16000436,0.00015269,2]
[394659555,1763832632004,-62.83999564,0.00015269,2]
[394659556,1763832632013,-150.0,0.00015303,2]
[394659557,1763832632023,-174.51895798,0.00015313,2]
[394659558,1763832632031,-150.0,0.0001536,2]
[394659559,1763832632040,-114.94235203,0.00015376,2]
[394659560,1763832632051,-75.13764797,0.00015376,2]
[394659561,1763832632059,-150.0,0.0001539,2]
[394659562,1763832632070,-150.0,0.00015438,2]
[394659563,1763832632078,-13286.14185128,0.00015441,2]
[394659565,1763832632089,-827.15139435,0.00015441,2]
[394659569,1763832632125,-487.0242411,0.00015441,2]
[394659572,1763832632139,-13723.54458081,0.00015441,2]
[394659584,1763832637807,-330.19238467,0.0001544,2]
[394659585,1763832637816,-19669.80691533,0.00015441,2]
[394659586,1763832637914,-518.75456392,0.00015441,2]
[394659587,1763832637927,-87500.0,0.00015441,2]
[394659588,1763832637938,-47907.6130865,0.00015441,2]
[394659748,1763832639923,-384.44100011,0.00015441,2]
[394659749,1763832639935,-17572.24656,0.00015441,2]
[394659750,1763832639978,-204566.0420492,0.00015441,2]
[394659751,1763832640033,-3561.99998,0.00015441,2]
[394659752,1763832640044,-400.400011,0.00015441,2]
[394659753,1763832640055,-4403.52,0.00015441,2]
[394659754,1763832640095,-3033.54105408,0.00015441,2]
[394659755,1763832640107,-3512.0,0.00015441,2]
[394659756,1763832640206,-1299.42556333,0.00015441,2]
[394659808,1763832643495,-3258.24746288,0.00015441,2]
[394659809,1763832643507,-847.20442132,0.00015441,2]
[394659810,1763832644135,-333240.89526479,0.00015441,2]
[394659811,1763832644146,-150.0,0.00015491,2]
[394659812,1763832644155,-150.0,0.00015491,2]
[394659813,1763832644164,-150.0,0.00015511,2]
[394659814,1763832644174,-150.0,0.00015528,2]
[394659815,1763832644183,-180.0,0.00015539,2]
[394659816,1763832644192,-1200.0,0.00015539,2]
[394659817,1763832644202,-300.0,0.00015539,2]
[394659818,1763832644212,-300.0,0.00015539,2]
[394659819,1763832644221,-13828.613,0.0001554,2]
[394659820,1763832644230,-27950.17,0.0001554,2]
[394659821,1763832644240,-174.51895798,0.00015579,2]
[394659822,1763832644249,-1492.55485945,0.0001558,2]
[394659823,1763832644258,-403.2363,0.00015581,2]
[394659824,1763832644267,-150.0,0.00015622,2]
[394659825,1763832644276,-150.0,0.00015632,2]
[394659826,1763832644286,-378.67,0.0001567,3]
[394659827,1763832644295,-500.0,0.00015679,2]
[394659828,1763832644304,-500.0,0.00015679,2]
[394659829,1763832644314,-500.0,0.00015679,2]
[394659830,1763832644323,-500.0,0.00015679,2]
[394659831,1763832644333,-500.0,0.00015679,2]
[394659832,1763832644342,-500.0,0.00015679,2]
[394659833,1763832644352,-500.0,0.00015679,2]
[394659834,1763832644362,-500.0,0.00015679,2]
[394659835,1763832644371,-502.57080421,0.00015679,2]
[394659836,1763832644380,-500.0,0.00015679,2]
[394659837,1763832644390,-500.0,0.00015679,2]
[394659838,1763832644399,-500.0,0.00015679,2]
[394659839,1763832644413,-500.0,0.00015679,2]
[394659840,1763832644422,-500.0,0.00015679,2]
[394659841,1763832644431,-500.0,0.00015679,2]
[394659842,1763832644442,-500.0,0.00015679,2]
[394659843,1763832644452,-500.0,0.00015679,2]
[394659844,1763832644461,-500.0,0.00015679,2]
[394659845,1763832644470,-500.0,0.00015679,2]
[394659846,1763832644479,-500.0,0.00015679,2]
[394659847,1763832644491,-500.0,0.00015679,2]
[394659848,1763832644499,-500.0,0.00015679,2]
[394659849,1763832644508,-500.0,0.00015679,2]
[394659850,1763832644517,-500.0,0.00015679,2]
[394659851,1763832644527,-500.0,0.00015679,2]
[394659852,1763832644535,-500.0,0.00015679,2]
[394659853,1763832644544,-500.0,0.00015679,2]
[394659854,1763832644554,-500.0,0.00015679,2]
[394659855,1763832644563,-500.0,0.00015679,2]
[394659856,1763832644572,-500.0,0.00015679,2]
[394659857,1763832644581,-500.0,0.00015679,2]
[394659858,1763832644590,-500.0,0.00015679,2]
[394659859,1763832644600,-500.0,0.00015679,2]
[394659860,1763832644610,-500.0,0.00015679,2]
[394659861,1763832644619,-500.0,0.00015679,2]
[394659862,1763832644628,-500.0,0.00015679,2]
[394659863,1763832644640,-500.0,0.00015679,2]
[394659864,1763832644651,-500.0,0.00015679,2]
[394659865,1763832644660,-500.0,0.00015679,2]
[394659866,1763832644669,-500.0,0.00015679,2]
[394659867,1763832644678,-500.0,0.00015679,2]
[394659868,1763832644687,-500.0,0.00015679,2]
[394659869,1763832644879,-350.0,0.00015679,2]
[394659870,1763832644891,-500.0,0.00015679,2]
[394659871,1763832644900,-500.0,0.00015679,2]
[394659873,1763832644909,-500.0,0.00015679,2]
[394659874,1763832644918,-33357.8684,0.0001568,2]
[394659875,1763832644927,-1000.0,0.0001568,2]
[394659876,1763832644936,-1000.0,0.0001568,2]
[394659877,1763832644946,-590.32,0.00015705,2]
[394659878,1763832644955,-160.68811956,0.00015738,2]
[394659879,1763832644964,-421.43256073,0.00015738,2]
[394659880,1763832644973,-207.41370764,0.00015738,2]
[394659881,1763832644982,-150.0,0.00015753,2]
[394659882,1763832644992,-150.0,0.00015753,2]
[394659883,1763832645001,-150.0,0.00015753,2]
[394659884,1763832645010,-150.0,0.00015753,2]
[394659885,1763832645020,-150.0,0.00015753,2]
[394659886,1763832645029,-150.0,0.00015753,2]
[394659887,1763832645039,-150.0,0.00015753,2]
[394659888,1763832645048,-150.0,0.00015753,2]
[394659889,1763832645057,-150.0,0.00015753,2]
[394659890,1763832645066,-999.99,0.00015773,2]
[394659891,1763832645075,-1118.7,0.00015773,2]
[394659892,1763832645084,-575.52,0.00015773,2]
[394659893,1763832645093,-160.5306224,0.00015773,2]
[394659894,1763832645104,-163.38,0.00015779,2]
[394659895,1763832645114,-500.0,0.00015779,2]
[394659896,1763832645123,-150.3850346,0.00015779,2]
[394659897,1763832645132,-1492.55485943,0.00015838,2]
[394659898,1763832645143,-430.07742484,0.000159,2]
[394659899,1763832645152,-430.07742483,0.000159,2]
[394659900,1763832645162,-150.0,0.00015964,2]
[394659901,1763832645171,-1000.0,0.00016041,2]
[394659902,1763832645180,-278.0094,0.00016069,2]
[394659903,1763832645190,-200.0,0.00016085,2]
[394659904,1763832645199,-1492.55485943,0.00016096,2]
[394659905,1763832645209,-231.3,0.00016133,2]
[394659906,1763832645219,-200.0,0.0001615,2]
[394659907,1763832645228,-1492.55485943,0.00016353,2]
[394659908,1763832645237,-5703.35,0.00016399,2]
[394659909,1763832645246,-361.03824126,0.000164,2]
[394659910,1763832645255,-263.76911351,0.00016438,2]
[394659911,1763832645264,-502.78,0.00016438,2]
[394659912,1763832645273,-500.0,0.00016438,2]
[394659913,1763832645282,-516.11033383,0.00016438,2]
[394659914,1763832645291,-500.0,0.00016438,2]
[394659915,1763832645300,-500.0,0.00016438,2]
[394659916,1763832645309,-500.0,0.00016438,2]
[394659917,1763832645319,-1508.51,0.00016438,2]
[394659918,1763832645328,-516.06,0.00016438,2]
[394659919,1763832645337,-384.84199313,0.00016438,2]
[394659920,1763832645347,-327.0,0.00016526,2]
[394659921,1763832645356,-327.0,0.00016576,2]
[394659922,1763832645364,-1492.55485943,0.00016611,2]
[394659923,1763832645374,-3802.0,0.00016617,2]
[394659924,1763832645384,-327.0,0.00016698,2]
[394659925,1763832645393,-169.6,0.00016707,2]
[394659926,1763832645407,-834.62,0.00016707,2]
[394659927,1763832645416,-300.0,0.00016707,2]
[394659928,1763832645426,-150.0,0.00016707,2]
[394659929,1763832645434,-417.31,0.00016707,2]
[394659930,1763832645444,-150.0,0.00016707,2]
[394659931,1763832645453,-417.31,0.00016707,2]
[394659932,1763832645462,-502.78,0.00016712,2]
[394659933,1763832645471,-500.0,0.00016712,2]
[394659934,1763832645481,-500.0,0.00016712,2]
[394659935,1763832645491,-500.0,0.00016712,2]
[394659936,1763832645499,-1508.51,0.00016712,2]
[394659937,1763832645509,-516.06,0.00016712,2]
[394659938,1763832645518,-327.0,0.00016756,2]
[394659939,1763832645527,-327.0,0.00016853,2]
[394659940,1763832645535,-3802.0,0.00016856,2]
[394659941,1763832645544,-200.0,0.00016864,2]
[394659942,1763832645554,-1492.55485943,0.00016869,2]
[394659943,1763832645563,-207.41370764,0.000169,2]
[394659944,1763832645572,-327.0,0.00016923,2]
[394659945,1763832645581,-501.54413169,0.00016973,2]
[394659946,1763832645590,-502.55984966,0.00016973,2]
[394659947,1763832645599,-500.0,0.00016973,2]
[394659948,1763832645609,-288.75831744,0.00016973,2]
[394659949,1763832645617,-574.04163079,0.00016973,2]
[394659950,1763832645627,-502.78,0.00016986,2]
[394659952,1763832645635,-500.0,0.00016986,2]
[394659954,1763832645644,-500.0,0.00016986,2]
[394659955,1763832645653,-500.0,0.00016986,2]
[394659956,1763832645663,-1508.51,0.00016986,2]
[394659957,1763832645672,-516.06,0.00016986,2]
[394659958,1763832645681,-300.0,0.00016999,2]
[394659960,1763832645691,-1908.0,0.00017,2]
[394659961,1763832645701,-267859.46918396,0.00017,2]
[394659966,1763832645842,-20000.0,0.00017,2]
[394659968,1763832645853,-2640.0,0.00017,2]
[394659970,1763832645869,-4403.52,0.00017,2]
[394659972,1763832646078,-37936.53968707,0.00017,2]
[394659973,1763832646090,-211799.81141227,0.00017,2]
[394659974,1763832646101,-877.9225576,0.00017,2]
[394659975,1763832646183,-684.39999965,0.00017,2]
[394659991,1763833273081,166.66,0.000145,2]
[394659992,1763833273288,166.66,0.00014806,2]
[394660048,1763833507329,150.0,0.00013907,2]
[394660049,1763833507381,150.0,0.00014679,2]
[394660050,1763833507568,150.0,0.00013907,2]
[394660051,1763833507612,150.0,0.00014422,2]
[394660052,1763833507812,150.0,0.00013907,2]
[394660055,1763833514170,150.0,0.00013907,2]
[394660056,1763833514233,150.0,0.00014679,2]
[394660057,1763833514383,150.0,0.00013907,2]
[394660058,1763833514492,150.0,0.00013907,2]
[394660059,1763833514536,150.0,0.00014293,2]
[394660060,1763833514606,150.0,0.00014679,2]
[394660061,1763833514851,150.0,0.00013907,2]
[394660088,1763833518449,150.0,0.00013907,2]
[394660089,1763833520488,1292.2,0.00014674,2]
[394660090,1763833525736,150.0,0.00013907,2]
[394660091,1763833525904,150.0,0.00013907,2]
[394660092,1763833526051,150.00000001,0.00013907,2]
[394660093,1763833526111,150.0,0.00013907,2]
[394660094,1763833527515,150.0,0.00013907,2]
[394660095,1763833527581,150.0,0.00014422,2]
[394660096,1763833627089,999.0,0.0001468,3]
[394660097,1763833743229,1324.48999998,0.00014633,2]
[394660098,1763833743251,10000.01,0.00014633,2]
[394660099,1763833743272,10000.01,0.00014633,2]
[394660100,1763833743293,10000.01,0.00014633,2]
[394660101,1763833743315,2956.16000002,0.00014633,2]
[394660102,1763833787392,525.83,0.00014687,2]
[394660103,1763833830118,1411.91349999,0.00014633,2]
[394660106,1763833832069,-150.0,0.00014937,2]
[394660107,1763833832078,-150.0,0.00014937,2]
[394660108,1763833832087,-42.32659662,0.00015001,2]
[394660109,1763833832098,-207.67340338,0.00015001,2]
[394660110,1763833832107,-150.0,0.00015066,2]
[394660111,1763833832116,-166.66,0.00015111,2]
[394660112,1763833832125,-4877.35815205,0.00015216,2]
[394660113,1763833832134,-300.0,0.00015299,2]
[394660114,1763833832144,-300.0,0.00015299,2]
[394660115,1763833832153,-1200.0,0.00015299,2]
[394660116,1763833832162,-2803.55369457,0.000153,2]
[394660117,1763833832173,-1103.94411286,0.000153,2]
[394660118,1763833832183,-648.68822708,0.000153,2]
[394660119,1763833832194,-873.94580296,0.000153,2]
[394660120,1763833832205,-272.9999999,0.000153,2]
[394660121,1763833832244,-203.25,0.000153,2]
[394660122,1763833832256,-305.62343923,0.000153,2]
[394660123,1763833832268,-1737.89938021,0.000153,2]
[394660124,1763833832278,-369.081,0.00015316,2]
[394660125,1763833832288,-235.0127,0.00015316,2]
[394660126,1763833832299,-814.14406595,0.00015316,2]
[394660127,1763833832311,-1750.22,0.00015316,2]
[394660128,1763833832323,-7308.69539608,0.00015316,2]
[394660129,1763833832338,-51989.08751584,0.00015316,2]
[394660131,1763833832349,-257.87596969,0.00015316,2]
[394660408,1763833838045,-162848.9094424,0.00015316,2]
[394660409,1763833838151,-5717.90920731,0.00015316,2]
[394660410,1763833838163,-343.56386327,0.00015316,2]
[394660411,1763833838258,-2432.9842022,0.00015316,2]
[394660412,1763833838271,-27526.21194246,0.00015316,2]
[394660413,1763833838283,-342.25365971,0.00015316,2]
[394660414,1763833838310,-894.2688825,0.00015316,2]
[394660456,1763833840154,-2280.65391572,0.00015316,2]
[394660457,1763833840166,-6604.777,0.00015316,2]
[394660458,1763833840206,-375.88088427,0.00015316,2]
[394660459,1763833840217,-1240.55544164,0.00015316,2]
[394660460,1763833840366,-3267.27513913,0.00015316,2]
[394660461,1763833840378,-4353.48,0.00015316,2]
[394660468,1763833843841,-362.60536559,0.00015316,2]
[394660469,1763833843852,-6830.4830715,0.00015316,2]
[394660470,1763833844570,-472458.16503474,0.00015316,2]